[Event "*** Titled Tuesday Blitz"]
[Site "Chess.com"]
[Date "2020.12.01"]
[Round "1"]
[White "Volodar_Murzin"]
[Black "Panterov"]
[Result "1-0"]
[WhiteElo "2595"]
[BlackElo "2290"]
[TimeControl "180+1"]
[EndTime "10:07:51 PST"]
[Termination "Volodar_Murzin won by resignation"]

1. e4 {[%clk 0:02:54.8]} 1... e5 {[%clk 0:03:00]} 2. Nf3 {[%clk 0:02:54]} 2...
Nf6 {[%clk 0:03:00]} 3. Nc3 {[%clk 0:02:44]} 3... Bb4 {[%clk 0:02:58.3]} 4. a3
{[%clk 0:02:32.1]} 4... Bxc3 {[%clk 0:02:58.1]} 5. dxc3 {[%clk 0:02:31.2]} 5...
d6 {[%clk 0:02:57.7]} 6. Bd3 {[%clk 0:02:29.9]} 6... O-O {[%clk 0:02:56.9]} 7.
h3 {[%clk 0:02:29.9]} 7... h6 {[%clk 0:02:56.8]} 8. c4 {[%clk 0:02:28.9]} 8...
b6 {[%clk 0:02:56.9]} 9. O-O {[%clk 0:02:28.7]} 9... Bb7 {[%clk 0:02:57.3]} 10.
Re1 {[%clk 0:02:26.9]} 10... Nbd7 {[%clk 0:02:57.6]} 11. b4 {[%clk 0:02:24.5]}
11... a5 {[%clk 0:02:57.2]} 12. Bd2 {[%clk 0:02:24.7]} 12... axb4 {[%clk
0:02:43.8]} 13. axb4 {[%clk 0:02:25.6]} 13... Qe7 {[%clk 0:02:30.5]} 14. Qe2
{[%clk 0:02:23.3]} 14... c5 {[%clk 0:02:28.4]} 15. b5 {[%clk 0:02:18.2]} 15...
Nh7 {[%clk 0:02:25.7]} 16. Nh2 {[%clk 0:02:16.1]} 16... Rxa1 {[%clk 0:02:20.3]}
17. Rxa1 {[%clk 0:02:15.5]} 17... Ra8 {[%clk 0:02:21.2]} 18. Rxa8+ {[%clk
0:02:13.2]} 18... Bxa8 {[%clk 0:02:21.2]} 19. Nf1 {[%clk 0:02:10.2]} 19... Ndf8
{[%clk 0:02:17.3]} 20. Ne3 {[%clk 0:02:08.8]} 20... Ne6 {[%clk 0:02:14.2]} 21.
Nf5 {[%clk 0:01:48.4]} 21... Qd8 {[%clk 0:02:09.7]} 22. f3 {[%clk 0:01:44.8]}
22... Nhf8 {[%clk 0:01:57.3]} 23. Qe1 {[%clk 0:01:41.3]} 23... Ng6 {[%clk
0:01:54.9]} 24. Qa1 {[%clk 0:01:36.3]} 24... Nd4 {[%clk 0:01:51.4]} 25. Nxd4
{[%clk 0:01:24.4]} 25... exd4 {[%clk 0:01:52.3]} 26. Qa7 {[%clk 0:01:23.6]}
26... Ne5 {[%clk 0:01:48.2]} 27. Bf4 {[%clk 0:01:17]} 27... Kf8 {[%clk
0:01:36.1]} 28. Kf2 {[%clk 0:01:06.9]} 28... g5 {[%clk 0:01:31.8]} 29. Bg3
{[%clk 0:01:02.7]} 29... Kg7 {[%clk 0:01:31.3]} 30. Ke2 {[%clk 0:01:01.7]} 30...
Ng6 {[%clk 0:01:22.7]} 31. Kd2 {[%clk 0:00:54.9]} 31... Nf4 {[%clk 0:01:22]} 32.
Bf1 {[%clk 0:00:54.5]} 32... Ne6 {[%clk 0:01:21]} 33. Kc1 {[%clk 0:00:48.1]}
33... Nf4 {[%clk 0:01:19.1]} 34. Be1 {[%clk 0:00:44.7]} 34... Ng6 {[%clk
0:01:17]} 35. c3 {[%clk 0:00:39.6]} 35... dxc3 {[%clk 0:01:13.8]} 36. Bxc3+
{[%clk 0:00:39]} 36... Ne5 {[%clk 0:01:14.7]} 37. Be2 {[%clk 0:00:33.2]} 37...
Kg6 {[%clk 0:01:14.8]} 38. Kb2 {[%clk 0:00:31.6]} 38... f6 {[%clk 0:01:10.9]}
39. g3 {[%clk 0:00:20.5]} 39... Nf7 {[%clk 0:01:03.3]} 40. Kb3 {[%clk
0:00:15.7]} 40... Ne5 {[%clk 0:01:03.3]} 41. f4 {[%clk 0:00:15.6]} 41... gxf4
{[%clk 0:01:03.6]} 42. gxf4 {[%clk 0:00:16.5]} 42... Nd7 {[%clk 0:01:00.9]} 43.
Bf3 {[%clk 0:00:14]} 43... h5 {[%clk 0:00:59.6]} 44. Qa1 {[%clk 0:00:13.4]}
44... Bb7 {[%clk 0:00:57.6]} 45. Qd1 {[%clk 0:00:12.1]} 45... Qe7 {[%clk
0:00:53.1]} 46. Bxh5+ {[%clk 0:00:11.3]} 46... Kh6 {[%clk 0:00:53.2]} 47. e5
{[%clk 0:00:05.8]} 47... dxe5 {[%clk 0:00:52.4]} 48. fxe5 {[%clk 0:00:06.7]}
48... Nxe5 {[%clk 0:00:52.3]} 49. Be2 {[%clk 0:00:06.8]} 49... Be4 {[%clk
0:00:50.3]} 50. Qd2+ {[%clk 0:00:07]} 50... Kg7 {[%clk 0:00:49.9]} 51. Qf4
{[%clk 0:00:07.9]} 51... Bg6 {[%clk 0:00:49.3]} 52. h4 {[%clk 0:00:07.9]} 52...
Nd3 {[%clk 0:00:48.2]} 53. Bxd3 {[%clk 0:00:06.5]} 53... Bxd3 {[%clk 0:00:49.1]}
54. Qg3+ {[%clk 0:00:07.1]} 54... Bg6 {[%clk 0:00:44.7]} 55. h5 {[%clk
0:00:07.1]} 55... Qf7 {[%clk 0:00:45.1]} 56. Qxg6+ {[%clk 0:00:06.9]} 56... Qxg6
{[%clk 0:00:46]} 57. hxg6 {[%clk 0:00:07.6]} 57... Kxg6 {[%clk 0:00:46.2]} 58.
Kc2 {[%clk 0:00:08.2]} 58... Kf5 {[%clk 0:00:46.6]} 59. Kd3 {[%clk 0:00:09.1]}
59... Kg5 {[%clk 0:00:46.5]} 60. Ke4 {[%clk 0:00:09.3]} 60... f5+ {[%clk
0:00:46.9]} 61. Kf3 {[%clk 0:00:09.9]} 61... f4 {[%clk 0:00:46.1]} 62. Be5
{[%clk 0:00:10.8]} 62... Kf5 {[%clk 0:00:46.4]} 63. Bc7 {[%clk 0:00:11.7]} 63...
Ke6 {[%clk 0:00:46.7]} 64. Bxb6 {[%clk 0:00:12.6]} 64... Kd6 {[%clk 0:00:47.1]}
65. Ba5 {[%clk 0:00:13.3]} 65... Ke5 {[%clk 0:00:47.1]} 66. Bc3+ {[%clk
0:00:14.2]} 66... Kd6 {[%clk 0:00:47.1]} 67. Kxf4 {[%clk 0:00:15.1]} 1-0

[Event "*** Titled Tuesday Blitz"]
[Site "Chess.com"]
[Date "2020.12.01"]
[Round "1"]
[White "LaPorfia"]
[Black "Iskusnyh"]
[Result "0-1"]
[WhiteElo "2301"]
[BlackElo "2626"]
[TimeControl "180+1"]
[EndTime "10:07:52 PST"]
[Termination "Iskusnyh won on time"]

1. d4 {[%clk 0:03:00.5]} 1... d5 {[%clk 0:02:59.3]} 2. Nf3 {[%clk 0:02:59]} 2...
Nf6 {[%clk 0:02:58.1]} 3. Bf4 {[%clk 0:02:58.1]} 3... c5 {[%clk 0:02:57.7]} 4.
e3 {[%clk 0:02:57.8]} 4... Nc6 {[%clk 0:02:58.2]} 5. c3 {[%clk 0:02:57.7]} 5...
Qb6 {[%clk 0:02:57.8]} 6. Qb3 {[%clk 0:02:58.1]} 6... c4 {[%clk 0:02:57.2]} 7.
Qxb6 {[%clk 0:02:57.9]} 7... axb6 {[%clk 0:02:56.5]} 8. Na3 {[%clk 0:02:57.6]}
8... Ra5 {[%clk 0:02:39]} 9. Bc7 {[%clk 0:02:55.5]} 9... e6 {[%clk 0:02:29.8]}
10. Nc2 {[%clk 0:02:45.8]} 10... Kd7 {[%clk 0:02:14.2]} 11. Bg3 {[%clk
0:02:27.3]} 11... Ne4 {[%clk 0:02:02.9]} 12. Nd2 {[%clk 0:02:21.4]} 12... Nxg3
{[%clk 0:01:59.1]} 13. hxg3 {[%clk 0:02:20.5]} 13... Bd6 {[%clk 0:01:53.2]} 14.
f4 {[%clk 0:02:19.2]} 14... Kc7 {[%clk 0:01:45.6]} 15. a3 {[%clk 0:02:16.3]}
15... Bd7 {[%clk 0:01:43.5]} 16. e4 {[%clk 0:02:00.8]} 16... g5 {[%clk
0:01:10.4]} 17. e5 {[%clk 0:01:54]} 17... Be7 {[%clk 0:01:09.6]} 18. Be2 {[%clk
0:01:42.4]} 18... f6 {[%clk 0:00:51.1]} 19. Nf3 {[%clk 0:01:37.7]} 19... gxf4
{[%clk 0:00:48.1]} 20. gxf4 {[%clk 0:01:38.6]} 20... fxe5 {[%clk 0:00:48.2]} 21.
Nxe5 {[%clk 0:01:17.3]} 21... Nxe5 {[%clk 0:00:46]} 22. fxe5 {[%clk 0:01:17.1]}
22... Be8 {[%clk 0:00:42.5]} 23. Bg4 {[%clk 0:01:12.3]} 23... Bd7 {[%clk
0:00:18.1]} 24. Kf2 {[%clk 0:00:55.1]} 24... Bg5 {[%clk 0:00:17.4]} 25. Ne3
{[%clk 0:00:51.9]} 25... Rb5 {[%clk 0:00:16.2]} 26. Rab1 {[%clk 0:00:50.7]}
26... Kd8 {[%clk 0:00:16]} 27. Rh5 {[%clk 0:00:47.4]} 27... h6 {[%clk
0:00:15.1]} 28. Bf3 {[%clk 0:00:41.4]} 28... Be8 {[%clk 0:00:14]} 29. Rhh1
{[%clk 0:00:30.9]} 29... Bg6 {[%clk 0:00:13.9]} 30. a4 {[%clk 0:00:31.1]} 30...
Ra5 {[%clk 0:00:10.8]} 31. Ra1 {[%clk 0:00:30.2]} 31... Ke7 {[%clk 0:00:11.3]}
32. Ng4 {[%clk 0:00:14.5]} 32... Rha8 {[%clk 0:00:09.7]} 33. Nf6 {[%clk
0:00:13.8]} 33... Rxa4 {[%clk 0:00:09.3]} 34. Rxa4 {[%clk 0:00:14.7]} 34... Rxa4
{[%clk 0:00:08.7]} 35. Re1 {[%clk 0:00:13.6]} 35... Ra2 {[%clk 0:00:07.6]} 36.
Re2 {[%clk 0:00:13.7]} 36... b5 {[%clk 0:00:07.3]} 37. Ng4 {[%clk 0:00:13.3]}
37... Bd3 {[%clk 0:00:06.9]} 38. Re1 {[%clk 0:00:11.2]} 38... Rxb2+ {[%clk
0:00:07.2]} 39. Kg3 {[%clk 0:00:11.5]} 39... Bd2 {[%clk 0:00:06.6]} 40. Ra1
{[%clk 0:00:10.1]} 40... Bxc3 {[%clk 0:00:05.9]} 41. Ra7 {[%clk 0:00:10.1]}
41... Bxd4 {[%clk 0:00:05.9]} 42. Rxb7+ {[%clk 0:00:10.4]} 42... Kd8 {[%clk
0:00:06.6]} 43. Nxh6 {[%clk 0:00:02.8]} 43... Bxe5+ {[%clk 0:00:06.2]} 44. Kg4
{[%clk 0:00:03.1]} 44... Bg6 {[%clk 0:00:05.1]} 0-1

[Event "*** Titled Tuesday Blitz"]
[Site "Chess.com"]
[Date "2020.12.01"]
[Round "1"]
[White "yobdc"]
[Black "salomez"]
[Result "1-0"]
[WhiteElo "2504"]
[BlackElo "2135"]
[TimeControl "180+1"]
[EndTime "10:07:52 PST"]
[Termination "yobdc won by checkmate"]

1. d4 {[%clk 0:03:00.7]} 1... Nf6 {[%clk 0:02:59.1]} 2. Nf3 {[%clk 0:03:00.5]}
2... g6 {[%clk 0:02:57.9]} 3. Nbd2 {[%clk 0:03:00.3]} 3... d5 {[%clk 0:02:56.9]}
4. e3 {[%clk 0:02:59.8]} 4... Bg7 {[%clk 0:02:57.4]} 5. b4 {[%clk 0:03:00]} 5...
a5 {[%clk 0:02:55.6]} 6. b5 {[%clk 0:02:59.8]} 6... c5 {[%clk 0:02:55.1]} 7. c4
{[%clk 0:02:56.8]} 7... cxd4 {[%clk 0:02:52.7]} 8. exd4 {[%clk 0:02:40.1]} 8...
O-O {[%clk 0:02:46.3]} 9. Be2 {[%clk 0:02:38.2]} 9... dxc4 {[%clk 0:02:43.7]}
10. Nxc4 {[%clk 0:02:20.6]} 10... Nd5 {[%clk 0:02:40.1]} 11. O-O {[%clk
0:02:06.9]} 11... Nc3 {[%clk 0:02:38.4]} 12. Qd3 {[%clk 0:02:03.2]} 12... Nxb5
{[%clk 0:02:27.6]} 13. Be3 {[%clk 0:01:55.5]} 13... Nc6 {[%clk 0:02:27.1]} 14.
Rad1 {[%clk 0:01:38.7]} 14... Nd6 {[%clk 0:01:36.4]} 15. Nce5 {[%clk 0:01:35.1]}
15... Nb4 {[%clk 0:01:34.5]} 16. Qb3 {[%clk 0:01:29.7]} 16... Be6 {[%clk
0:01:33.4]} 17. d5 {[%clk 0:01:27.5]} 17... Bf5 {[%clk 0:01:27.8]} 18. Rd2
{[%clk 0:01:22.4]} 18... Ne4 {[%clk 0:01:18.8]} 19. Rd4 {[%clk 0:01:12.8]} 19...
Rc8 {[%clk 0:01:12.2]} 20. g4 {[%clk 0:00:54.9]} 20... Nc3 {[%clk 0:00:59.8]}
21. Bc4 {[%clk 0:00:54.9]} 21... Bc2 {[%clk 0:00:49.3]} 22. Qxc3 {[%clk
0:00:53.4]} 22... Ba4 {[%clk 0:00:19.8]} 23. Qd2 {[%clk 0:00:38.1]} 23... b5
{[%clk 0:00:17.3]} 24. Bb3 {[%clk 0:00:35.3]} 24... Bxb3 {[%clk 0:00:15.4]} 25.
axb3 {[%clk 0:00:36.2]} 25... Qc7 {[%clk 0:00:10.7]} 26. Bf4 {[%clk 0:00:27.7]}
26... Qa7 {[%clk 0:00:07.4]} 27. Re4 {[%clk 0:00:18.5]} 27... Rfd8 {[%clk
0:00:05.8]} 28. Qe3 {[%clk 0:00:15.5]} 28... Qxe3 {[%clk 0:00:04.1]} 29. Bxe3
{[%clk 0:00:14.2]} 29... Nxd5 {[%clk 0:00:03.3]} 30. Ra1 {[%clk 0:00:13.8]}
30... Nc3 {[%clk 0:00:02.7]} 31. Rf4 {[%clk 0:00:06.3]} 31... a4 {[%clk
0:00:03.6]} 32. bxa4 {[%clk 0:00:06.4]} 32... bxa4 {[%clk 0:00:04]} 33. Rfxa4
{[%clk 0:00:06.5]} 33... Ne2+ {[%clk 0:00:04.3]} 34. Kg2 {[%clk 0:00:06.6]}
34... Nc3 {[%clk 0:00:04.1]} 35. Ra7 {[%clk 0:00:06.5]} 35... f5 {[%clk
0:00:04.1]} 36. Rxe7 {[%clk 0:00:05.7]} 36... f4 {[%clk 0:00:04.1]} 37. Bb6
{[%clk 0:00:05.1]} 37... Rd5 {[%clk 0:00:03.7]} 38. Raa7 {[%clk 0:00:05.4]}
38... Bxe5 {[%clk 0:00:02.7]} 39. Nxe5 {[%clk 0:00:05.3]} 39... Nb5 {[%clk
0:00:03.4]} 40. Rg7+ {[%clk 0:00:05.4]} 40... Kf8 {[%clk 0:00:03.3]} 41. Raf7+
{[%clk 0:00:05.5]} 41... Ke8 {[%clk 0:00:03.3]} 42. Rg8# {[%clk 0:00:06]} 1-0

[Event "*** Titled Tuesday Blitz"]
[Site "Chess.com"]
[Date "2020.12.01"]
[Round "1"]
[White "pastouche06"]
[Black "FMOlexandrProhorov"]
[Result "0-1"]
[WhiteElo "2511"]
[BlackElo "2194"]
[TimeControl "180+1"]
[EndTime "10:07:56 PST"]
[Termination "FMOlexandrProhorov won on time"]

1. d4 {[%clk 0:03:00.6]} 1... g6 {[%clk 0:02:55.8]} 2. c4 {[%clk 0:02:59.6]}
2... Bg7 {[%clk 0:02:55.3]} 3. Nc3 {[%clk 0:03:00.1]} 3... c5 {[%clk 0:02:55]}
4. d5 {[%clk 0:03:00.2]} 4... Bxc3+ {[%clk 0:02:53.4]} 5. bxc3 {[%clk
0:03:01.1]} 5... Qa5 {[%clk 0:02:53.1]} 6. Qc2 {[%clk 0:02:53.8]} 6... f5 {[%clk
0:02:47.1]} 7. e4 {[%clk 0:02:54]} 7... fxe4 {[%clk 0:02:45.2]} 8. f3 {[%clk
0:02:53.9]} 8... e3 {[%clk 0:02:44.5]} 9. Bxe3 {[%clk 0:02:53.1]} 9... Nf6
{[%clk 0:02:44.5]} 10. Bd3 {[%clk 0:02:52.6]} 10... d6 {[%clk 0:02:44.8]} 11.
Ne2 {[%clk 0:02:32.1]} 11... Nbd7 {[%clk 0:02:44.1]} 12. Nf4 {[%clk 0:02:32.3]}
12... Nb6 {[%clk 0:02:35.9]} 13. O-O {[%clk 0:02:25.6]} 13... Bd7 {[%clk
0:02:35.8]} 14. Ne6 {[%clk 0:02:16.7]} 14... Bxe6 {[%clk 0:02:34.5]} 15. dxe6
{[%clk 0:02:17.6]} 15... O-O-O {[%clk 0:02:33.7]} 16. a4 {[%clk 0:02:04]} 16...
d5 {[%clk 0:02:10.3]} 17. cxd5 {[%clk 0:02:02.6]} 17... Nbxd5 {[%clk 0:02:05.3]}
18. Bd2 {[%clk 0:02:02.6]} 18... Qb6 {[%clk 0:02:01.3]} 19. a5 {[%clk
0:01:42.2]} 19... Qxe6 {[%clk 0:01:59]} 20. Rfe1 {[%clk 0:01:42.2]} 20... Qd6
{[%clk 0:01:53.9]} 21. a6 {[%clk 0:01:39]} 21... b6 {[%clk 0:01:53.5]} 22. g3
{[%clk 0:01:32.4]} 22... c4 {[%clk 0:01:38.5]} 23. Bf1 {[%clk 0:01:28]} 23...
Qc5+ {[%clk 0:01:38.4]} 24. Kh1 {[%clk 0:01:27.3]} 24... Rhf8 {[%clk 0:01:30.6]}
25. Bh3+ {[%clk 0:01:05.4]} 25... Kb8 {[%clk 0:01:30.1]} 26. Re5 {[%clk
0:00:56.5]} 26... Nh5 {[%clk 0:00:58.7]} 27. Qe4 {[%clk 0:00:46.6]} 27... Rf7
{[%clk 0:00:36.2]} 28. Be6 {[%clk 0:00:37.1]} 28... Nhf6 {[%clk 0:00:31]} 29.
Qe2 {[%clk 0:00:33.6]} 29... Rg7 {[%clk 0:00:31]} 30. Rd1 {[%clk 0:00:28.9]}
30... Qc6 {[%clk 0:00:23.9]} 31. Bh6 {[%clk 0:00:23.2]} 31... Rgg8 {[%clk
0:00:20.2]} 32. Bxg8 {[%clk 0:00:21.2]} 32... Rxg8 {[%clk 0:00:20.3]} 33. Re6
{[%clk 0:00:17.5]} 33... Qc7 {[%clk 0:00:19.4]} 34. Qe5 {[%clk 0:00:14.1]} 34...
Rd8 {[%clk 0:00:17.7]} 35. Qxc7+ {[%clk 0:00:10.9]} 35... Kxc7 {[%clk
0:00:18.6]} 36. Rd4 {[%clk 0:00:07.3]} 36... b5 {[%clk 0:00:17.8]} 37. Re5
{[%clk 0:00:06.4]} 37... Rd6 {[%clk 0:00:16.9]} 38. f4 {[%clk 0:00:03]} 38...
Kc6 {[%clk 0:00:16.7]} 39. Bg7 {[%clk 0:00:02.8]} 39... Nd7 {[%clk 0:00:16.8]}
40. Re1 {[%clk 0:00:02.4]} 40... N7b6 {[%clk 0:00:17.1]} 41. Rdd1 {[%clk
0:00:02.2]} 41... Nf6 {[%clk 0:00:15.1]} 42. Bxf6 {[%clk 0:00:02.2]} 42... Rxf6
{[%clk 0:00:13.9]} 43. Rd4 {[%clk 0:00:02.2]} 43... Nd5 {[%clk 0:00:12.2]} 44.
Re5 {[%clk 0:00:02.3]} 44... Rd6 {[%clk 0:00:11.6]} 45. Kg1 {[%clk 0:00:01.8]}
45... Nxc3 {[%clk 0:00:11.7]} 46. Rxd6+ {[%clk 0:00:01.6]} 46... exd6 {[%clk
0:00:12.1]} 47. Re7 {[%clk 0:00:01.7]} 47... b4 {[%clk 0:00:11.9]} 48. Rxa7
{[%clk 0:00:01.7]} 48... Nb5 {[%clk 0:00:11.3]} 49. Rb7 {[%clk 0:00:01.4]} 49...
Nc7 {[%clk 0:00:09.6]} 0-1

[Event "*** Titled Tuesday Blitz"]
[Site "Chess.com"]
[Date "2020.12.01"]
[Round "1"]
[White "xamax2000"]
[Black "jens1102"]
[Result "1-0"]
[WhiteElo "2642"]
[BlackElo "2316"]
[TimeControl "180+1"]
[EndTime "10:07:59 PST"]
[Termination "xamax2000 won by resignation"]

1. e4 {[%clk 0:02:56.3]} 1... e5 {[%clk 0:02:59.4]} 2. Nf3 {[%clk 0:02:53.1]}
2... Nc6 {[%clk 0:02:58.7]} 3. Bb5 {[%clk 0:02:51.7]} 3... a6 {[%clk 0:02:58.7]}
4. Ba4 {[%clk 0:02:51.4]} 4... Nf6 {[%clk 0:02:58.2]} 5. O-O {[%clk 0:02:50.4]}
5... Nxe4 {[%clk 0:02:58.6]} 6. d4 {[%clk 0:02:49.5]} 6... b5 {[%clk 0:02:58.5]}
7. Bb3 {[%clk 0:02:49.2]} 7... d5 {[%clk 0:02:59.2]} 8. dxe5 {[%clk 0:02:49.4]}
8... Be6 {[%clk 0:02:58]} 9. c3 {[%clk 0:02:49.8]} 9... Bc5 {[%clk 0:02:56.3]}
10. Qd3 {[%clk 0:02:32.2]} 10... O-O {[%clk 0:02:51.9]} 11. Be3 {[%clk
0:02:30.6]} 11... Qe7 {[%clk 0:02:29.2]} 12. Nbd2 {[%clk 0:02:11.4]} 12... Bxe3
{[%clk 0:01:39.6]} 13. Qxe3 {[%clk 0:02:00.9]} 13... Nxd2 {[%clk 0:01:30.7]} 14.
Qxd2 {[%clk 0:01:15.3]} 14... Rad8 {[%clk 0:01:29.5]} 15. Rfe1 {[%clk
0:01:10.5]} 15... Qc5 {[%clk 0:00:56.1]} 16. Nd4 {[%clk 0:01:06.2]} 16... Qb6
{[%clk 0:00:39.9]} 17. Re3 {[%clk 0:00:30.2]} 17... Ne7 {[%clk 0:00:38.9]} 18.
Bc2 {[%clk 0:00:23.3]} 18... c5 {[%clk 0:00:37.7]} 19. Nxe6 {[%clk 0:00:23.2]}
19... Qxe6 {[%clk 0:00:37.5]} 20. Rh3 {[%clk 0:00:19.7]} 20... h6 {[%clk
0:00:30.7]} 21. Re1 {[%clk 0:00:19.6]} 21... d4 {[%clk 0:00:29]} 22. b3 {[%clk
0:00:19]} 22... dxc3 {[%clk 0:00:28.4]} 23. Qxc3 {[%clk 0:00:19.1]} 23... c4
{[%clk 0:00:27.1]} 24. bxc4 {[%clk 0:00:18.6]} 24... Qxc4 {[%clk 0:00:20.4]} 25.
Qxc4 {[%clk 0:00:18.8]} 25... bxc4 {[%clk 0:00:20.8]} 26. Rc3 {[%clk 0:00:19.3]}
26... Rc8 {[%clk 0:00:20.1]} 27. Be4 {[%clk 0:00:19.1]} 27... Rc7 {[%clk
0:00:18.3]} 28. f4 {[%clk 0:00:17.2]} 28... Rfc8 {[%clk 0:00:14]} 29. Kf2 {[%clk
0:00:17.3]} 29... Rc5 {[%clk 0:00:13.3]} 30. Rb1 {[%clk 0:00:16.7]} 30... R8c7
{[%clk 0:00:13.1]} 31. Ke3 {[%clk 0:00:16.5]} 31... Nc6 {[%clk 0:00:11]} 32. Rb6
{[%clk 0:00:13.1]} 32... Kf8 {[%clk 0:00:10.8]} 33. Rxa6 {[%clk 0:00:12.2]}
33... Ke7 {[%clk 0:00:10.7]} 34. Rxc6 {[%clk 0:00:11.3]} 34... R5xc6 {[%clk
0:00:10.6]} 35. Bxc6 {[%clk 0:00:12.2]} 35... Rxc6 {[%clk 0:00:11.5]} 36. Kd4
{[%clk 0:00:12.8]} 36... Ra6 {[%clk 0:00:12.2]} 37. Rc2 {[%clk 0:00:12.9]} 37...
Ra4 {[%clk 0:00:12.9]} 38. f5 {[%clk 0:00:11.7]} 38... g6 {[%clk 0:00:12.2]} 39.
Rxc4 {[%clk 0:00:06.8]} 39... Rxa2 {[%clk 0:00:09.6]} 40. Rc7+ {[%clk
0:00:07.2]} 40... Ke8 {[%clk 0:00:06]} 41. f6 {[%clk 0:00:05.1]} 41... Rd2+
{[%clk 0:00:05.9]} 42. Ke4 {[%clk 0:00:04.9]} 42... Rxg2 {[%clk 0:00:05.7]} 43.
Rc8+ {[%clk 0:00:05.4]} 43... Kd7 {[%clk 0:00:05.8]} 44. Rf8 {[%clk 0:00:06.3]}
44... Ke6 {[%clk 0:00:05.7]} 45. Re8+ {[%clk 0:00:06.6]} 45... Kd7 {[%clk
0:00:06.4]} 46. Re7+ {[%clk 0:00:07.5]} 46... Kd8 {[%clk 0:00:06.7]} 47. Rxf7
{[%clk 0:00:08.4]} 47... Re2+ {[%clk 0:00:07]} 48. Kd5 {[%clk 0:00:08.6]} 48...
Rd2+ {[%clk 0:00:07.6]} 49. Ke6 {[%clk 0:00:08.9]} 49... Rxh2 {[%clk 0:00:08.3]}
50. Ra7 {[%clk 0:00:07.9]} 50... Rf2 {[%clk 0:00:07.6]} 51. f7 {[%clk
0:00:08.3]} 51... h5 {[%clk 0:00:07.5]} 52. Ra8+ {[%clk 0:00:08.7]} 52... Kc7
{[%clk 0:00:08.1]} 53. f8=Q {[%clk 0:00:09.6]} 53... Rf7 {[%clk 0:00:07.3]} 54.
Qxf7+ {[%clk 0:00:09.4]} 1-0

[Event "*** Titled Tuesday Blitz"]
[Site "Chess.com"]
[Date "2020.12.01"]
[Round "1"]
[White "Nadeev_Sergey"]
[Black "Jospem"]
[Result "0-1"]
[WhiteElo "2445"]
[BlackElo "2964"]
[TimeControl "180+1"]
[EndTime "10:08:01 PST"]
[Termination "Jospem won by resignation"]

1. d4 {[%clk 0:02:57.6]} 1... Nf6 {[%clk 0:03:00.4]} 2. Bf4 {[%clk 0:02:57.2]}
2... e6 {[%clk 0:03:00.6]} 3. e3 {[%clk 0:02:54.6]} 3... b6 {[%clk 0:03:01]} 4.
Nf3 {[%clk 0:02:53.7]} 4... Bb7 {[%clk 0:03:01.3]} 5. Be2 {[%clk 0:02:51.7]}
5... Be7 {[%clk 0:03:01.7]} 6. O-O {[%clk 0:02:51.3]} 6... c5 {[%clk 0:03:00.9]}
7. c3 {[%clk 0:02:48.5]} 7... O-O {[%clk 0:03:00.4]} 8. Nbd2 {[%clk 0:02:48.9]}
8... cxd4 {[%clk 0:02:59.9]} 9. cxd4 {[%clk 0:02:48.1]} 9... Nc6 {[%clk
0:02:58.2]} 10. Rc1 {[%clk 0:02:47.2]} 10... d6 {[%clk 0:02:56]} 11. a3 {[%clk
0:02:45.1]} 11... a6 {[%clk 0:02:56]} 12. e4 {[%clk 0:02:41.1]} 12... b5 {[%clk
0:02:47.4]} 13. Bd3 {[%clk 0:02:40.5]} 13... Qb6 {[%clk 0:02:37.1]} 14. Nb1
{[%clk 0:02:20.1]} 14... Rac8 {[%clk 0:01:59.5]} 15. d5 {[%clk 0:01:44.7]} 15...
exd5 {[%clk 0:01:23.5]} 16. exd5 {[%clk 0:01:44.9]} 16... Nxd5 {[%clk 0:01:24]}
17. Bg5 {[%clk 0:01:45.3]} 17... Nf6 {[%clk 0:01:00.8]} 18. Bf5 {[%clk
0:01:43.9]} 18... Rcd8 {[%clk 0:00:55.3]} 19. Be3 {[%clk 0:01:38.5]} 19... Qc7
{[%clk 0:00:39.3]} 20. Nd4 {[%clk 0:01:38.4]} 20... g6 {[%clk 0:00:36.3]} 21.
Bd3 {[%clk 0:01:24.6]} 21... Qd7 {[%clk 0:00:34.3]} 22. Nxc6 {[%clk 0:01:18.6]}
22... Bxc6 {[%clk 0:00:33.8]} 23. Bd4 {[%clk 0:01:00.7]} 23... Bb7 {[%clk
0:00:25.9]} 24. Qd2 {[%clk 0:00:54]} 24... Nh5 {[%clk 0:00:22.3]} 25. f4 {[%clk
0:00:49.2]} 25... Bf6 {[%clk 0:00:21.7]} 26. Bxf6 {[%clk 0:00:48.9]} 26... Nxf6
{[%clk 0:00:22.6]} 27. f5 {[%clk 0:00:49.2]} 27... Kg7 {[%clk 0:00:18.6]} 28.
Qc3 {[%clk 0:00:38.3]} 28... Rde8 {[%clk 0:00:16.1]} 29. Nd2 {[%clk 0:00:35.7]}
29... Re5 {[%clk 0:00:15.7]} 30. Nf3 {[%clk 0:00:33.3]} 30... Bxf3 {[%clk
0:00:15.1]} 31. Rxf3 {[%clk 0:00:34.2]} 31... g5 {[%clk 0:00:10.1]} 32. h4
{[%clk 0:00:30.4]} 32... g4 {[%clk 0:00:09.9]} 33. Rf4 {[%clk 0:00:30.1]} 33...
Kh8 {[%clk 0:00:07.3]} 34. Rd1 {[%clk 0:00:26.1]} 34... Nd5 {[%clk 0:00:06.6]}
35. Qd4 {[%clk 0:00:24.4]} 35... Nxf4 {[%clk 0:00:06.8]} 36. Qxf4 {[%clk
0:00:25.3]} 36... f6 {[%clk 0:00:05.9]} 37. Bb1 {[%clk 0:00:20.6]} 37... d5
{[%clk 0:00:05.3]} 38. Qxg4 {[%clk 0:00:18.5]} 38... Rg8 {[%clk 0:00:05.3]} 39.
Qf3 {[%clk 0:00:17.1]} 39... Qe7 {[%clk 0:00:05.4]} 40. Ba2 {[%clk 0:00:15.5]}
40... Qc5+ {[%clk 0:00:05.7]} 41. Kh1 {[%clk 0:00:14.7]} 41... Re3 {[%clk
0:00:04.2]} 42. Qxd5 {[%clk 0:00:13]} 42... Qxd5 {[%clk 0:00:04.7]} 43. Bxd5
{[%clk 0:00:13.9]} 43... Rd8 {[%clk 0:00:04.4]} 44. Kh2 {[%clk 0:00:10.9]} 44...
Re5 {[%clk 0:00:04.9]} 45. Bf3 {[%clk 0:00:11.2]} 45... Rxd1 {[%clk 0:00:05.8]}
46. Bxd1 {[%clk 0:00:12]} 46... Rxf5 {[%clk 0:00:06.7]} 47. Kg3 {[%clk
0:00:10.6]} 47... Rd5 {[%clk 0:00:07.2]} 48. Bf3 {[%clk 0:00:09.8]} 48... Rd2
{[%clk 0:00:08.1]} 49. Bb7 {[%clk 0:00:09.7]} 49... Rxb2 {[%clk 0:00:08.4]} 50.
Bxa6 {[%clk 0:00:09.5]} 50... Kg7 {[%clk 0:00:08.9]} 51. Kh3 {[%clk 0:00:08.4]}
51... f5 {[%clk 0:00:09.3]} 52. g3 {[%clk 0:00:08.7]} 52... Kf6 {[%clk
0:00:09.8]} 0-1